Workbook

Sheet EST Hold Harmless FY23
A1: COMMONWEALTH OF MASSACHUSETTS
A2: ESTIMATED HOLD HARMLESS ALLOCATIONS FOR FISCAL YEAR 2023 AND ALLOCATIONS FOR FISCAL YEAR 2022 COMPARED FOR WIOA TITLE I ADULT, DISLOCATED WORKER, AND YOUTH PROGRAMS
A5: MASSHIRE WORKFORCE AREAS | B5: WIOA TITLE I ADULT HOLD HARMLESS ALLOCATION ESTIMATES FOR FY 2023 | H5: WIOA TITLE I DISLOCATED WORKER HOLD HARMLESS ALLOCATION ESTIMATES FOR FY 2023 | N5: WIOA TITLE 1 YOUTH HOLD HARMLESS ALLOCATION ESTIMATES FOR FY23
B7: FY23 Adult Hold-Harmless Level | F7: FY 2023 | G7: Adult Total | H7: FY23 DW Hold-Harmless Level | L7: FY 2023 | M7: DW Total | N7: FY23Youth Hold-Harmless Level | R7: FY 2023 | S7: Youth Total
B8: 90% of the Average Adult Share for the Prior 2 Years | F8: Adult Estimate | G8: Allocation | H8: 90% of the Average DW Share for the Prior 2 Years | L8: DW Estimate | M8: Allocation | N8: 90% of the Average Youth Share for the Prior 2 Years | R8: Youth Estimate | S8: Allocation
B9: FY22 | C9: FY21 | D9: Average | E9: 90%HH | F9: HOLD HARMLESS | G9: FY 2022 | H9: FY22 | I9: FY21 | J9: Average | K9: 90% HH | L9: HOLD HARMLESS | M9: FY 2022 | N9: FY22 | O9: FY21 | P9: Average | Q9: 90%HH | R9: HOLD HARMLESS | S9: FY 2022
A10: Berkshire County | B10: 0.027 | C10: 0.0331 | D10: =+(B10+C10)/2 -> 0.03005 | E10: =ROUND(D10*0.9,4) -> 0.027 | F10: =E10*$F$27 -> 374659.182 | G10: 288199 | H10: 0.0305 | I10: 0.0333 | J10: =+(H10+I10)/2 -> 0.0319 | K10: =ROUND(J10*0.9,4) -> 0.0287 | L10: =K10*$L$27 -> 385736.4952 | M10: 369652 | N10: 0.0271 | O10: 0.0331 | P10: =+(N10+O10)/2 -> 0.0301 | Q10: =ROUND(P10*0.9,4) -> 0.0271 | R10: =Q10*$R$27 -> 441415.7755 | S10: 339551
A11: Boston | B11: 0.1232 | C11: 0.1259 | D11: 0.12455 | E11: =ROUND(D11*0.9,4) -> 0.1121 | F11: =E11*$F$27 -> 1555529.419 | G11: 1315043 | H11: 0.0924 | I11: 0.0805 | J11: =+(H11+I11)/2 -> 0.08645 | K11: =ROUND(J11*0.9,4) -> 0.0778 | L11: =K11*$L$27 -> 1045655.029 | M11: 1119864 | N11: 0.1341 | O11: 0.1401 | P11: 0.1371 | Q11: =ROUND(P11*0.9,4) -> 0.1234 | R11: =Q11*$R$27 -> 2009989.177 | S11: 1680212
A12: Bristol County | B12: 0.0679 | C12: 0.0731 | D12: 0.0705 | E12: 0.0635 | F12: 881142.891 | G12: 724768 | H12: 0.0724 | I12: 0.0789 | J12: 0.07565 | K12: 0.0681 | L12: 915284.1576 | M12: 877469 | N12: 0.0629 | O12: 0.0672 | P12: 0.06505 | Q12: 0.0585 | R12: 952871.6925 | S12: 788108
A13: Brockton | B13: 0.0478 | C13: 0.0566 | D13: 0.0522 | E13: 0.047 | F13: 652184.502 | G13: 510220 | H13: 0.0474 | I13: 0.0453 | J13: 0.04635 | K13: 0.0417 | L13: 560460.3432 | M13: 574476 | N13: 0.0482 | O13: 0.0583 | P13: 0.05325 | Q13: 0.0479 | R13: 780214.5995 | S13: 603924
A14: Cape Cod & Islands | B14: 0.044 | C14: 0.0494 | D14: 0.0467 | E14: 0.042 | F14: 582803.172 | G14: 469658 | H14: 0.0455 | I14: 0.0535 | J14: 0.0495 | K14: 0.0446 | L14: 599437.2016 | M14: 551448 | N14: 0.0418 | O14: 0.0468 | P14: 0.0443 | Q14: 0.0399 | R14: 649907.3595 | S14: 523735
A15: Central Mass | B15: 0.074 | C15: 0.0698 | D15: 0.0719 | E15: 0.0647 | F15: 897794.4102 | G15: 789880 | H15: 0.0767 | I15: 0.0858 | J15: 0.08125 | K15: 0.0731 | L15: 982485.6376 | M15: 929584 | N15: 0.071 | O15: 0.0687 | P15: 0.06985 | Q15: 0.0629 | R15: 1024540.674 | S15: 889597
A16: Franklin/Hampshire | B16: 0.0281 | C16: 0.0257 | D16: 0.0269 | E16: 0.0242 | F16: 335805.6372 | G16: 299941 | H16: 0.0312 | I16: 0.0355 | J16: 0.03335 | K16: 0.03 | L16: 403208.88 | M16: 378136 | N16: 0.0463 | O16: 0.0435 | P16: 0.0449 | Q16: 0.0404 | R16: 658051.562 | S16: 580118
A17: Greater Lowell | B17: 0.0383 | C17: 0.0414 | D17: 0.03985 | E17: 0.0359 | F17: 498157.9494 | G17: 408816 | H17: 0.0461 | I17: 0.0465 | J17: 0.0463 | K17: 0.0417 | L17: 560460.3432 | M17: 558720 | N17: 0.0365 | O17: 0.0396 | P17: 0.03805 | Q17: 0.0342 | R17: 557063.451 | S17: 457328
A18: Gtr New Bedford | B18: 0.0499 | C18: 0.0568 | D18: 0.05335 | E18: 0.048 | F18: 666060.768 | G18: 532635 | H18: 0.0487 | I18: 0.0535 | J18: 0.0511 | K18: 0.046 | L18: 618253.616 | M18: 590232 | N18: 0.0492 | O18: 0.0559 | P18: 0.05255 | Q18: 0.0473 | R18: 770441.5565 | S18: 616453
A19: Hampden County | B19: 0.1402 | C19: 0.1689 | D19: 0.15455 | E19: 0.1391 | F19: 1930188.601 | G19: 1496502 | H19: 0.0724 | I19: 0.0833 | J19: 0.07785 | K19: 0.0701 | L19: 942164.7496 | M19: 877469 | N19: 0.14 | O19: 0.1682 | P19: 0.1541 | Q19: 0.1387 | R19: 2259201.773 | S19: 1754136
A20: Merrimack Valley | B20: 0.0626 | C20: 0.0621 | D20: 0.06235 | E20: 0.0561 | F20: 778458.5226 | G20: 668196 | H20: 0.0603 | I20: 0.0644 | J20: 0.06235 | K20: 0.0561 | L20: 754000.6056 | M20: 730821 | N20: 0.0599 | O20: 0.0591 | P20: 0.0595 | Q20: 0.0536 | R20: 873058.508 | S20: 750520
A21: Metro North | B21: 0.0721 | C21: 0.059 | D21: 0.06555 | E21: 0.059 | F21: 818699.694 | G21: 769599 | H21: 0.1068 | I21: 0.0753 | J21: 0.09105 | K21: 0.0819 | L21: 1100760.242 | M21: 1294389 | N21: 0.0682 | O21: 0.0522 | P21: 0.0602 | Q21: 0.0542 | R21: 882831.551 | S21: 854515
A22: Metro South/West | B22: 0.0689 | C22: 0.0528 | D22: 0.06085 | E22: 0.0548 | F22: 760419.3768 | G22: 735442 | H22: 0.0912 | I22: 0.0929 | J22: 0.09205 | K22: 0.0828 | L22: 1112856.509 | M22: 1105321 | N22: 0.0733 | O22: 0.0567 | P22: 0.065 | Q22: 0.0585 | R22: 952871.6925 | S22: 918415
A23: North Central | B23: 0.0359 | C23: 0.0365 | D23: 0.0362 | E23: 0.0326 | F23: 452366.2716 | G23: 383198 | H23: 0.0397 | I23: 0.0444 | J23: 0.04205 | K23: 0.0378 | L23: 508043.1888 | M23: 481154 | N23: 0.0298 | O23: 0.033 | P23: 0.0314 | Q23: 0.0283 | R23: 460961.8615 | S23: 373380
A24: North Shore | B24: 0.0568 | C24: 0.0402 | D24: 0.0485 | E24: 0.0437 | F24: 606392.8242 | G24: 606286 | H24: 0.0634 | I24: 0.0575 | J24: 0.06045 | K24: 0.0544 | L24: 731152.1024 | M24: 768392 | N24: 0.0533 | O24: 0.0358 | P24: 0.04455 | Q24: 0.0401 | R24: 653165.0405 | S24: 667825
A25: South Shore | B25: 0.0633 | C25: 0.0487 | D25: 0.056 | E25: 0.0504 | F25: 699363.8064 | G25: 675667 | H25: 0.0753 | I25: 0.0694 | J25: 0.07235 | K25: 0.0651 | L25: 874963.2696 | M25: 912617 | N25: 0.0584 | O25: 0.0418 | P25: 0.0501 | Q25: 0.0451 | R25: 734607.0655 | S25: 731725
A26: TOTAL HH 90% | B26: 1 | C26: 1 | D26: =SUM(D10:D25) -> 1 | E26: =SUM(E10:E25) -> 0.9001 | F26: =SUM(F10:F25) -> 12490027.03 | G26: 10674051 | H26: 1 | I26: 1 | J26: =SUM(J10:J25) -> 1 | K26: =SUM(K10:K25) -> 0.8999 | L26: =SUM(L10:L25) -> 12094922.37 | M26: 12119744 | N26: 1 | O26: 1 | P26: =SUM(P10:P25) -> 1 | Q26: =SUM(Q10:Q25) -> 0.9001 | R26: =SUM(R10:R25) -> 14661193.34 | S26: 12529542
A27: FY23 Total Estimated Workforce Area Program Share | F27: 13876266 | L27: 13440296 | R27: 16288405
A28: FY23 Total Estimated State Program Allotment | F28: 16325019 | L28: 22400494 | R28: 19162829
A29: FY 2023 Estimated WIOA State Allotments were provided in Training and Employmnet Notice (TEN) 20-21, issued on Febriary 2. 2022
A30: Hold Haemless: Each MassHIre Workforce Area must receive a minimum percentage (or stop loss) to ensure that no local area receives an allocation percentage that is less than 90 percent of the average allocation percentage received by the local area for the previous two years (FY22 and FY21).
A31: Important Note: The funding levels in TEN 20-21 can provide states with a general idea of how their funding may change in FY232. Data are not meant to predict allocations. ETA: 1) used the data that ETA will use to calculate the actual FY 2023 allotments, and 2) estimated funding based on the full year FY 2022 funding levels for these programs.
A33: MassHire Department of Career Services | R33: Date Prepared: 02.03.22
